Service Area Categorisation,Service Division Categorisation,Responsible Unit,Expenses Type,Detailed Expenses Type,Expense Code,Date,Transaction Number,Amount,Supplier Name
National Parks,,Murley Moss - Capital,,Capital Professional Services,CE11,01/07/2015,808993,"1,200.00",W Barden Biomass
National Parks,,IT Capital,,Computer Hardware,CE08,01/07/2015,808431,"3,784.15",In Form Consult Ltd
National Parks,Cost to be Re-allocated,Murley Moss,Premises,Contract Cleaning,5200,01/07/2015,809014,"1,130.50",Bullough Contract Services Ltd
National Parks,Cost to be Re-allocated,Info & Comm Technology,Supplies & Services,Equipment - Contract Mtce,5525,01/07/2015,808944,"3,000.00",NCC Group Secure Test Limited
National Parks,Promoting Understanding,Keswick IC,Supplies & Services,Books for Resale,7015,02/07/2015,808971,813.9,Hills Books Ltd
National Parks,Promoting Understanding,Keswick IC,Supplies & Services,Gifts for Resale (Stock),7010,02/07/2015,808989,615.32,Cardtoons Publications Ltd
National Parks,Promoting Understanding,Bowness Bay IC,Supplies & Services,Gifts for Resale (Stock),7010,03/07/2015,808978,485.2,Black Ginger Ltd
National Parks,Promoting Understanding,Bowness Bay IC,Supplies & Services,Gifts for Resale (Stock),7010,03/07/2015,808986,637.23,Coniston Gifts Ltd
National Parks,Promoting Understanding,Bowness Bay IC,Supplies & Services,Gifts for Resale (Stock),7010,03/07/2015,809043,631.85,The Pebble Shop
National Parks,Promoting Understanding,Gardeners,Premises,Purchase of Seeds & Plants,5248,03/07/2015,808968,"1,750.55",David G Ross Ltd
National Parks,Promoting Understanding,Gardeners,Employee Costs,Contract Staff,4092,06/07/2015,809039,"1,404.00",Helping Hands Gardening Service
National Parks,Recreation Management & Transport,Recreation,Supplies & Services,Miscellaneous Expenses,6999,06/07/2015,808663,"2,000.00",Natural England
National Parks,Recreation Management & Transport,Toilets,Premises,Other Clean (Incl Refuse),5205,06/07/2015,808912,540,Simpson Services
National Parks,Cost to be Re-allocated,Depots,Premises,Rent,5000,06/07/2015,809078,850,CGP Estates Ltd
National Parks,Cost to be Re-allocated,Strategy & Partnerships,Supplies & Services,Consultants,8205,07/07/2015,809035,"2,546.00",Richard Ingham Cycle Planning Consultancy
National Parks,Cost to be Re-allocated,Strategy & Partnerships,Supplies & Services,Consultants,8205,08/07/2015,809093,"2,200.00",Chris Greenwood Landscape Architect
National Parks,Recreation Management & Transport,Toilets,Premises,Contract Cleaning,5200,08/07/2015,809131,"2,566.83",Stephen E Airey t/a Bob Airey
National Parks,Recreation Management & Transport,Coniston Boating Centre,Supplies & Services,Credit Card Charges,6925,08/07/2015,809037,490.85,Data Interchange Plc DIRECT DEBIT
National Parks,Recreation Management & Transport,Coniston Boating Centre,Supplies & Services,Equip Other Mtce/Repairs,5530,08/07/2015,809133,"1,030.00",Hadwins Sheds
National Parks,Cost to be Re-allocated,Uniforms & Protective clothing,Supplies & Services,Equip Other Mtce/Repairs,5530,08/07/2015,808990,775,O'Malley Plant Hire Ltd
National Parks,Conservation of the Natural Environment,Environment,Premises,Grounds Maintenance,5245,08/07/2015,809082,"4,000.00",West Cumbria River Trust
National Parks,Recreation Management & Transport,Coniston Boating Centre,Supplies & Services,Marketing,6310,08/07/2015,809048,750,AHA! Distribution Ltd
National Parks,Recreation Management & Transport,Toilets,Premises,Other Clean (Incl Refuse),5205,08/07/2015,809131,16,Stephen E Airey t/a Bob Airey
National Parks,Conservation of the Natural Environment,Environment,Premises,Prpty Mtce Fd Unallocated,5252,08/07/2015,808877,"1,486.50",Mott MacDonald Limited
National Parks,Recreation Management & Transport,Property Operations,Premises,Rent,5000,08/07/2015,809058,"1,600.00",The Croft
National Parks,Recreation Management & Transport,Recreation,Premises,Signs New,5280,08/07/2015,809098,"1,115.20",Brampton Wood Works
National Parks,Recreation Management & Transport,Toilets,Premises,Water,5010,08/07/2015,809010,"1,282.81",United Utilities Water Ltd. DIRECT DEBIT
National Parks,Cost to be Re-allocated,Development Management Support,Supplies & Services,Advertising,6300,09/07/2015,809097,185.08,Cumbria County Council
National Parks,Cost to be Re-allocated,Finance Team,Supplies & Services,Advertising,6300,09/07/2015,809097,536.62,Cumbria County Council
National Parks,,IT Capital,,Computer Hardware,CE08,09/07/2015,809034,"3,389.25",In Form Consult Ltd
National Parks,Cost to be Re-allocated,Vehicles,Transport,Maint/Service/Repairs/MOT,5410,09/07/2015,808810,611.9,Lakeland Landrover
National Parks,Promoting Understanding,Brockhole Development & Events,,New Construction Conversion Renovation,CE02,09/07/2015,809075,"1,285.00",Bergen Arbortech
National Parks,Promoting Understanding,Catering,Premises,Other Clean (Incl Refuse),5205,09/07/2015,809066,558.63,Biffa Waste Services ltd.
National Parks,Cost to be Re-allocated,Finance Team,Supplies & Services,Other Professional Fees,8215,09/07/2015,809087,"2,222.75",Bury Council Pay Services
National Parks,Cost to be Re-allocated,Finance Team,Supplies & Services,Other Professional Fees,8215,09/07/2015,808979,"2,200.00",Grant Thornton UK LLP
National Parks,Cost to be Re-allocated,Vehicles,Transport,Petrol/Fuel,5400,09/07/2015,809146,"1,240.56",Allstar Business Solutions Ltd DD
National Parks,Cost to be Re-allocated,Vehicles,Transport,Petrol/Fuel,5400,09/07/2015,808779,638.53,Furness & Sth Cumberland Supply
National Parks,,Balance Sheet Cost Centre,,Procurement Card Control,2400,09/07/2015,809135,"20,174.21",Natwest
National Parks,Cost to be Re-allocated,Property Maintenance Fund,Premises,Prpty Mtce Fd Unallocated,5252,09/07/2015,809069,"20,000.00",Environment Agency
National Parks,Cost to be Re-allocated,Property Maintenance Fund,Premises,Prpty Mtce Fd Unallocated,5252,09/07/2015,809079,800,Mr James Gillings
National Parks,Promoting Understanding,Catering,Employee Costs,Temporary Agency Staff,4090,09/07/2015,808994,551.25,AWOL Recruitment
National Parks,Promoting Understanding,Catering,Employee Costs,Temporary Agency Staff,4090,09/07/2015,808997,477.01,Masterstaff Ltd
National Parks,Promoting Understanding,Catering,Employee Costs,Temporary Agency Staff,4090,09/07/2015,808675,609.46,Masterstaff Ltd
National Parks,Cost to be Re-allocated,Personnel,Supplies & Services,Consultants,8205,10/07/2015,808872,613.7,M Taylor Associates Limited
National Parks,Cost to be Re-allocated,Personnel,Employee Costs,Temporary Agency Staff,4090,10/07/2015,808966,520.9,Reed Employment plc
National Parks,Cost to be Re-allocated,Personnel,Employee Costs,Temporary Agency Staff,4090,10/07/2015,808803,547.14,Reed Employment plc
National Parks,Cost to be Re-allocated,Personnel,Employee Costs,Temporary Agency Staff,4090,10/07/2015,808809,562.13,Reed Employment plc
National Parks,Cost to be Re-allocated,Personnel,Employee Costs,Training,4200,10/07/2015,809025,515,Ray's School of Motoring
National Parks,Promoting Understanding,Brockhole IC,Supplies & Services,Books for Resale,7015,13/07/2015,808972,510.68,Hills Books Ltd
National Parks,Promoting Understanding,Brockhole IC,Supplies & Services,Books for Resale,7015,13/07/2015,808973,910.48,Hills Books Ltd
National Parks,Promoting Understanding,Bowness Bay IC,Premises,Contract Cleaning,5200,13/07/2015,809182,480,South Lakes Services
National Parks,Promoting Understanding,Bowness Bay IC,Premises,Contract Cleaning,5200,13/07/2015,809183,480,South Lakes Services
National Parks,Promoting Understanding,Bowness Bay IC,Premises,Contract Cleaning,5200,13/07/2015,809181,600,South Lakes Services
National Parks,Recreation Management & Transport,Property Operations,Supplies & Services,Credit Card Charges,6925,13/07/2015,809137,"1,355.63",First Data DD
National Parks,Promoting Understanding,Bowness Bay IC,Supplies & Services,Gifts for Resale (Stock),7010,13/07/2015,809147,680.61,Firefrost Ltd
National Parks,Promoting Understanding,Brockhole IC,Supplies & Services,Gifts for Resale (Stock),7010,13/07/2015,808969,515.47,Firefrost Ltd
National Parks,Promoting Understanding,Bowness Bay IC,Supplies & Services,Gifts for Resale (Stock),7010,13/07/2015,809151,992.85,Richard Lang & Son Ltd
National Parks,Recreation Management & Transport,Property Operations,Premises,Grounds Maintenance,5245,13/07/2015,809156,800,Coniston Ground Care
National Parks,Recreation Management & Transport,Property Operations,Premises,Grounds Maintenance,5245,13/07/2015,809164,900,Parking Infastructure Services UK
National Parks,Recreation Management & Transport,Coniston Boating Centre,Supplies & Services,Marketing,6310,13/07/2015,809163,900,Coniston TIC Ltd
National Parks,Recreation Management & Transport,Property Operations,Supplies & Services,Security Service Cash Col,6985,13/07/2015,809158,"1,550.71",Loomis UK Limited
National Parks,"Rangers, Estates & Volunteers",Volunteers,Employee Costs,Training,4200,13/07/2015,808991,516.5,First Aid Training Plus
National Parks,Cost to be Re-allocated,Strategy & Partnerships,Supplies & Services,Consultants,8205,15/07/2015,809191,"1,500.00",Bowfell Consulting Limited
National Parks,Promoting Understanding,Keswick IC,Supplies & Services,Books for Resale,7015,16/07/2015,809201,594.45,Hills Books Ltd
National Parks,Promoting Understanding,Keswick IC,Supplies & Services,Books for Resale,7015,16/07/2015,809213,628.2,Hills Books Ltd
National Parks,Promoting Understanding,Brockhole,Premises,Contract Cleaning,5200,16/07/2015,809229,"1,019.93",Cumbria Cleaning Services Ltd
National Parks,Recreation Management & Transport,Toilets,Premises,Contract Cleaning,5200,16/07/2015,809286,770,Lakesloos
National Parks,Recreation Management & Transport,Coniston Boating Centre,Supplies & Services,Credit Card Charges,6925,16/07/2015,809246,486.11,Credit Call Communications Ltd DD
National Parks,Promoting Understanding,Bowness Bay IC,Premises,Electricity,5100,16/07/2015,809262,"1,063.16",Npower
National Parks,Promoting Understanding,Brockhole,Premises,Electricity,5100,16/07/2015,809254,454.1,Npower
National Parks,Promoting Understanding,Brockhole,Premises,Electricity,5100,16/07/2015,809256,521.11,Npower
National Parks,Promoting Understanding,Brockhole,Premises,Electricity,5100,16/07/2015,809258,783.53,Npower
National Parks,Promoting Understanding,Brockhole,Premises,Electricity,5100,16/07/2015,809267,"1,853.35",Npower
National Parks,Promoting Understanding,Catering,Premises,Electricity,5100,16/07/2015,809267,327.06,Npower
National Parks,Recreation Management & Transport,Coniston Boating Centre,Premises,Electricity,5100,16/07/2015,809257,476.62,Npower
National Parks,Promoting Understanding,Catering,Supplies & Services,Food for Resale,7000,16/07/2015,809171,-572.95,Halls (Kendal) Ltd
National Parks,Promoting Understanding,Catering,Supplies & Services,Food for Resale,7000,16/07/2015,809172,463.29,Halls (Kendal) Ltd
National Parks,Promoting Understanding,Catering,Supplies & Services,Food for Resale,7000,16/07/2015,809173,592.7,Halls (Kendal) Ltd
National Parks,Promoting Understanding,Catering,Supplies & Services,Food for Resale,7000,16/07/2015,809237,556.49,Riverbank Hospitality Catering
National Parks,Promoting Understanding,Keswick IC,Supplies & Services,Gifts for Resale (Stock),7010,16/07/2015,809241,"1,159.20",Royal Mail Retail DIRECT DEBIT
National Parks,Promoting Understanding,Keswick IC,Supplies & Services,Gifts for Resale (Stock),7010,16/07/2015,809268,638.06,The Herdy Company Ltd
National Parks,Promoting Understanding,Brockhole,Supplies & Services,Miscellaneous Expenses,6999,16/07/2015,809188,460,PBA Appliced Ecolocy Ltd
National Parks,,Car Parks - Capital,,New Construction Conversion Renovation,CE02,16/07/2015,809149,850,Ormrod Signs
National Parks,Promoting Understanding,Keswick IC,Income,Non Accommodation Comm,3100,16/07/2015,809277,-58.43,Theatre by the Lake
National Parks,"Rangers, Estates & Volunteers",Volunteers,Supplies & Services,Printing,6015,16/07/2015,809223,893,Designworks
National Parks,Cost to be Re-allocated,Information Centre Support,,Theatre by the Lake,2133,16/07/2015,809277,701.25,Theatre by the Lake
National Parks,Promoting Understanding,Bowness Bay IC,Supplies & Services,Books for Resale,7015,17/07/2015,809238,-633.08,Hills Books Ltd
National Parks,Promoting Understanding,Ullswater IC,Supplies & Services,Books for Resale,7015,17/07/2015,808974,691.55,Hills Books Ltd
National Parks,Promoting Understanding,Bowness Bay IC,Supplies & Services,Books for Resale,7015,17/07/2015,809270,55.2,The Herdy Company Ltd
National Parks,Promoting Understanding,Brockhole,Premises,Contract Cleaning,5200,17/07/2015,809287,165,Lakesloos
National Parks,Recreation Management & Transport,Toilets,Premises,Contract Cleaning,5200,17/07/2015,809287,630,Lakesloos
National Parks,Promoting Understanding,Catering,Supplies & Services,Food for Resale,7000,17/07/2015,809316,570.4,Town End Dairy
National Parks,Promoting Understanding,Brockhole IC,Supplies & Services,Gifts for Resale (Stock),7010,17/07/2015,809076,633.12,Keycraft Ltd
National Parks,Promoting Understanding,Bowness Bay IC,Supplies & Services,Gifts for Resale (Stock),7010,17/07/2015,809270,888.68,The Herdy Company Ltd
National Parks,,Balance Sheet Cost Centre,,Gondola Tickets,2108,17/07/2015,809333,"5,138.26",National Trust - Gondola
National Parks,Forward Planning & Communities,Community - Fund,Third Party Payments,Grant Contribution,8350,17/07/2015,809331,573,South Cumbria Rivers Trust
National Parks,,Balance Sheet Cost Centre,,Lowther Car Parks,2115,17/07/2015,809328,"1,738.70",Dalemain Estates
National Parks,Cost to be Re-allocated,Strategy & Partnerships,Supplies & Services,Miscellaneous Expenses,6999,17/07/2015,809023,"1,575.80",The Human Office Ltd
National Parks,Cost to be Re-allocated,Personnel,Employee Costs,Relocation/Removal,4205,17/07/2015,809023,"1,575.80",The Human Office Ltd
National Parks,Promoting Understanding,Catering,Employee Costs,Temporary Agency Staff,4090,17/07/2015,809310,547.8,Masterstaff Ltd
National Parks,Promoting Understanding,Catering,Employee Costs,Temporary Agency Staff,4090,17/07/2015,809309,"1,123.99",Masterstaff Ltd
National Parks,Cost to be Re-allocated,Personnel,Employee Costs,Temporary Agency Staff,4090,17/07/2015,809186,554.63,Reed Employment plc
National Parks,,Balance Sheet Cost Centre,,TIC Agency 90%,2110,17/07/2015,809336,510.75,Alhambra Cinema
National Parks,,Balance Sheet Cost Centre,,TIC Agency 90%,2110,17/07/2015,809337,"4,334.50",Keswick Launch Company
National Parks,,Balance Sheet Cost Centre,,TIC Agency 90%,2110,17/07/2015,809338,511.1,Mountain Goat Hols & Tours
National Parks,Promoting Understanding,Gardeners,Employee Costs,Contract Staff,4092,20/07/2015,809284,960,Mr J Camp
National Parks,Recreation Management & Transport,Coniston Boating Centre,Supplies & Services,Credit Card Charges,6925,20/07/2015,809240,"1,135.70",First Data DD
National Parks,Cost to be Re-allocated,Murley Moss,Premises,Electricity,5100,20/07/2015,809260,974.02,Npower
National Parks,Promoting Understanding,Brockhole IC,Supplies & Services,Gifts for Resale (Stock),7010,20/07/2015,809195,713.26,Buffera Ltd
National Parks,Cost to be Re-allocated,Vehicles,Transport,Maint/Service/Repairs/MOT,5410,20/07/2015,809323,780.69,Lakeland Landrover
National Parks,,Murley Moss - Capital,,New Construction Conversion Renovation,CE02,20/07/2015,809148,577.9,Lakeland Environmental Management
National Parks,Cost to be Re-allocated,Vehicles,Transport,Petrol/Fuel,5400,20/07/2015,809291,"1,061.13",Allstar Business Solutions Ltd DD
National Parks,Cost to be Re-allocated,Vehicles,Transport,Petrol/Fuel,5400,20/07/2015,809290,"1,310.41",Allstar Business Solutions Ltd DD
National Parks,Cost to be Re-allocated,Vehicles,Transport,Petrol/Fuel,5400,20/07/2015,809292,"1,641.70",Allstar Business Solutions Ltd DD
National Parks,Cost to be Re-allocated,Contact Centre,Supplies & Services,Postage,6000,20/07/2015,809326,655,Nationwide Franking Sense Ltd
National Parks,Cost to be Re-allocated,Property Maintenance Fund,Premises,Prpty Mtce Fd Unallocated,5252,20/07/2015,809136,"3,750.00",Capita Property Services
National Parks,Recreation Management & Transport,Property Operations,Premises,Rent,5000,20/07/2015,809302,"2,500.00",National Trust Wiltshire
National Parks,Recreation Management & Transport,Recreation,Premises,Basic RoW Maintenance,5240,21/07/2015,809122,600,Gareth Thornley Photography & Web Design
National Parks,Cost to be Re-allocated,Central & South PM,Premises,Electricity,5100,21/07/2015,809253,486.52,Npower
National Parks,Recreation Management & Transport,Toilets,Premises,Contract Cleaning,5200,22/07/2015,809396,889.5,Roger Turner Cleaning
National Parks,Promoting Understanding,Brockhole Development,Employee Costs,Contract Staff,4092,22/07/2015,809101,"7,486.00",Adam Thomas
National Parks,Promoting Understanding,Brockhole IC,Supplies & Services,Gifts for Resale (Stock),7010,22/07/2015,809221,"1,460.00",Ty UK Ltd
National Parks,,Cultural heritage Properties - Cap,,New Construction Conversion Renovation,CE02,23/07/2015,808933,"7,139.40",The Coal Authority
National Parks,Promoting Understanding,Catering,Supplies & Services,Food for Resale,7000,24/07/2015,809365,791.5,Riverbank Hospitality Catering
National Parks,Recreation Management & Transport,See More Project,Third Party Payments,Grant Contribution,8350,24/07/2015,809153,"3,750.00",Lake District Estates Co Ltd T/A Ullswater Steamer
National Parks,Recreation Management & Transport,See More Project,Third Party Payments,Grant Contribution,8350,24/07/2015,809561,"7,500.00",Mountain Goat Hols & Tours
National Parks,Recreation Management & Transport,See More Project,Third Party Payments,Grant Contribution,8350,24/07/2015,809539,"7,300.00",Open Book Visitor Guiding
National Parks,Promoting Understanding,Catering,Supplies & Services,Ice Cream for Resale,7005,24/07/2015,809531,421.44,Hulleys Group Limited (Speediserve)
National Parks,Cost to be Re-allocated,Legal,Supplies & Services,Legal Fees/Counsel Fees,8200,24/07/2015,809546,935,Rebecca Clutten
National Parks,Cost to be Re-allocated,Property Manager,Supplies & Services,Other Professional Fees,8215,24/07/2015,809335,-489,Carter Jonas
National Parks,Cost to be Re-allocated,Property Manager,Supplies & Services,Other Professional Fees,8215,24/07/2015,808717,489,Carter Jonas
National Parks,Cost to be Re-allocated,Info & Comm Technology,Supplies & Services,Phones,6005,24/07/2015,809560,507.16,Daisy Communications
National Parks,Cost to be Re-allocated,Info & Comm Technology,Supplies & Services,Phones,6005,24/07/2015,809393,-514.96,Vodafone Ltd DIRECT DEBIT
National Parks,Cost to be Re-allocated,Info & Comm Technology,Supplies & Services,Phones,6005,24/07/2015,809243,505,Vodafone Ltd DIRECT DEBIT
National Parks,Cost to be Re-allocated,Info & Comm Technology,Supplies & Services,Phones,6005,24/07/2015,809244,655.64,Vodafone Ltd DIRECT DEBIT
National Parks,Cost to be Re-allocated,PMF Projects ,Premises,Prpty Mtce Fd Unallocated,5252,24/07/2015,809568,450,Simpson Services
National Parks,Promoting Understanding,Catering,Employee Costs,Temporary Agency Staff,4090,24/07/2015,809406,547.58,Adecco UK Ltd
National Parks,Promoting Understanding,Catering,Employee Costs,Temporary Agency Staff,4090,24/07/2015,809405,668.8,Adecco UK Ltd
National Parks,Promoting Understanding,Catering,Employee Costs,Temporary Agency Staff,4090,24/07/2015,809407,760.76,Adecco UK Ltd
National Parks,Promoting Understanding,Catering,Employee Costs,Temporary Agency Staff,4090,24/07/2015,809376,461.63,Masterstaff Ltd
National Parks,Promoting Understanding,Catering,Employee Costs,Temporary Agency Staff,4090,24/07/2015,809375,483.17,Masterstaff Ltd
National Parks,Promoting Understanding,Catering,Employee Costs,Temporary Agency Staff,4090,24/07/2015,809374,498.56,Masterstaff Ltd
National Parks,Cost to be Re-allocated,Finance Team,Supplies & Services,Bank Charges,6915,27/07/2015,809610,891.17,HMRC Vat
National Parks,Recreation Management & Transport,Recreation,Premises,Basic RoW Maintenance,5240,27/07/2015,809224,600,J J Hope
National Parks,Recreation Management & Transport,Recreation,Premises,Basic RoW Maintenance,5240,27/07/2015,809299,"4,395.00",Steven Brown Fencing
National Parks,Promoting Understanding,Keswick IC,Supplies & Services,Books for Resale,7015,27/07/2015,809369,"1,032.42",Hills Books Ltd
National Parks,Forward Planning & Communities,Policy & Strategy Projects,Supplies & Services,Consultants,8205,27/07/2015,809154,750,Andrew Lowe
National Parks,Forward Planning & Communities,Policy & Strategy Projects,Supplies & Services,Consultants,8205,27/07/2015,809235,"7,570.00",Archaeo-Enviroment Ltd
National Parks,Conservation of the Cultural Heritage,Heritage Conservation - Projects,Supplies & Services,Consultants,8205,27/07/2015,809409,"1,414.41",Minerva Heritage Limited
National Parks,Conservation of the Natural Environment,Strategic Investment Programme,Supplies & Services,Consultants,8205,27/07/2015,809526,"1,650.00",Rebecca Willis
National Parks,Promoting Understanding,Bowness Bay IC,Supplies & Services,Equipment - Contract Mtce,5525,27/07/2015,809545,380,Merlin Software
National Parks,Promoting Understanding,Brockhole IC,Supplies & Services,Equipment - Contract Mtce,5525,27/07/2015,809545,380,Merlin Software
National Parks,Promoting Understanding,Keswick IC,Supplies & Services,Equipment - Contract Mtce,5525,27/07/2015,809545,380,Merlin Software
National Parks,Promoting Understanding,Ullswater IC,Supplies & Services,Equipment - Contract Mtce,5525,27/07/2015,809545,380,Merlin Software
National Parks,Cost to be Re-allocated,Info & Comm Technology,Supplies & Services,Equipment - Contract Mtce,5525,27/07/2015,809580,"5,826.80",Phoenix Software Ltd
National Parks,Cost to be Re-allocated,Murley Moss,Supplies & Services,Equipment - Hire,5535,27/07/2015,809554,474,Aquaid
National Parks,Promoting Understanding,Brockhole IC,Supplies & Services,Gifts for Resale (Stock),7010,27/07/2015,809217,476.31,Coniston Gifts Ltd
National Parks,Conservation of the Natural Environment,Environment,Premises,Grounds Maintenance,5245,27/07/2015,809578,"1,960.00",Eden Farm Chemicals
National Parks,Conservation of the Natural Environment,Environment,Premises,Grounds Maintenance,5245,27/07/2015,809233,"9,988.69",Lakeland Forestry Contracting
National Parks,Cost to be Re-allocated,Personnel,Employee Costs,Occupational Health,4220,27/07/2015,809354,"1,575.85",CueDoc Holdings Ltd
National Parks,Recreation Management & Transport,Rusland Horizons,Supplies & Services,Other Professional Fees,8215,27/07/2015,809352,800,Rebecca Oaks
National Parks,Cost to be Re-allocated,Personnel,Employee Costs,Temporary Agency Staff,4090,27/07/2015,809360,449.7,Reed Employment plc
National Parks,Cost to be Re-allocated,Personnel,Employee Costs,Temporary Agency Staff,4090,27/07/2015,809401,513.41,Reed Employment plc
National Parks,,Threlkeld Depot - balance sheet CC,,Threlkeld Depot stock,1911,27/07/2015,809534,"1,234.00",Mr David Benson
National Parks,"Rangers, Estates & Volunteers",Park Management Apprentices,Employee Costs,Training,4200,27/07/2015,809527,250,Craven College
National Parks,Cost to be Re-allocated,Personnel,Employee Costs,Training,4200,27/07/2015,809527,550,Craven College
National Parks,Cost to be Re-allocated,Murley Moss,Premises,Water,5010,27/07/2015,809551,"2,124.56",United Utilities Water Ltd. DIRECT DEBIT
National Parks,Cost to be Re-allocated,Development Management Support,Supplies & Services,Advertising,6300,28/07/2015,809399,365.7,Cumbria County Council
National Parks,Recreation Management & Transport,Recreation,Supplies & Services,Advertising,6300,28/07/2015,809399,67.21,Cumbria County Council
National Parks,Recreation Management & Transport,Recreation,Premises,Basic RoW Maintenance,5240,28/07/2015,809544,"1,185.50",G Metcalf
National Parks,Promoting Understanding,Ullswater IC,Supplies & Services,Books for Resale,7015,28/07/2015,809622,624.92,Hills Books Ltd
National Parks,Promoting Understanding,Keswick IC,Supplies & Services,Equipment - Contract Mtce,5525,28/07/2015,809650,"2,100.00",New Vision Group Ltd
National Parks,Recreation Management & Transport,Property Operations,Premises,Rent,5000,28/07/2015,809552,"3,000.00",Michael CL Hodgson
National Parks,Recreation Management & Transport,Property Operations,Premises,Rent,5000,28/07/2015,809558,"1,100.74",National Trust Wiltshire
National Parks,Cost to be Re-allocated,Lake Patrol Team,Employee Costs,Training,4200,28/07/2015,809275,717.5,Budgie Power
National Parks,Recreation Management & Transport,Toilets,Premises,Water,5010,28/07/2015,809537,687.49,United Utilities Water Ltd. DIRECT DEBIT
National Parks,Promoting Understanding,Brockhole,Premises,Contract Cleaning,5200,29/07/2015,809653,344.88,Caterite
National Parks,Promoting Understanding,Catering,Supplies & Services,Food for Resale,7000,29/07/2015,809653,"7,444.51",Caterite
National Parks,Promoting Understanding,Catering,Supplies & Services,Food for Resale,7000,29/07/2015,809593,50.48,English Lakes Ice Cream
National Parks,Promoting Understanding,Catering,Supplies & Services,Food for Resale,7000,29/07/2015,809601,607.7,Mommas Foods Limited
National Parks,Promoting Understanding,Catering,Supplies & Services,Food for Resale,7000,29/07/2015,809591,657.2,Mommas Foods Limited
National Parks,Promoting Understanding,Catering,Supplies & Services,Ice Cream for Resale,7005,29/07/2015,809593,633.47,English Lakes Ice Cream
National Parks,Cost to be Re-allocated,Communications & Customer Engagement,Supplies & Services,Information & Learning,6311,29/07/2015,809681,800,JTW Creative Limited
National Parks,Cost to be Re-allocated,Vehicles,Transport,Petrol/Fuel,5400,29/07/2015,809529,600.81,Market Street Filling Station
National Parks,Promoting Understanding,PMF Projects ,Premises,Prpty Mtce Fd Unallocated,5252,29/07/2015,809573,454,Westmorland Fire & Security
National Parks,Cost to be Re-allocated,Contact Centre,Supplies & Services,Uniforms/Protective Cloth,5570,29/07/2015,809543,"1,963.50",Paramo Ltd
National Parks,Cost to be Re-allocated,Contact Centre,Supplies & Services,Uniforms/Protective Cloth,5570,29/07/2015,809616,"-2,067.64",Patagonia Direct Sales Europe
National Parks,Cost to be Re-allocated,Contact Centre,Supplies & Services,Uniforms/Protective Cloth,5570,29/07/2015,809615,"5,314.74",Patagonia Direct Sales Europe
National Parks,Recreation Management & Transport,Passenger Transport,Third Party Payments,Annual Grants,8335,31/07/2015,809750,"7,482.00",Orsta Marina Systems Nederland BV (Foreign paymt)
National Parks,,Balance Sheet Cost Centre,,Procurement Card Control,2400,31/07/2015,809298,"20,008.26",Natwest
National Parks,Recreation Management & Transport,Recreation,Premises,Basic RoW Maintenance,5240,03/08/2015,809666,"1,779.00",T W Relph
National Parks,,HR balance sheet CC,,Busy Bees,2506,03/08/2015,809654,"2,996.00",Computershare Voucher Services DD
National Parks,Promoting Understanding,Brockhole,Premises,Electricity,5100,03/08/2015,809727,"1,571.99",Npower
National Parks,Promoting Understanding,Catering,Premises,Electricity,5100,03/08/2015,809727,277.41,Npower
National Parks,Cost to be Re-allocated,Info & Comm Technology,Supplies & Services,Equipment - Contract Mtce,5525,03/08/2015,809672,"2,885.48",IT Professional Services Ltd
National Parks,,Cultural heritage Properties - Cap,,New Construction Conversion Renovation,CE02,03/08/2015,809586,"1,583.80",Hydro Logic Limited T/A Isodaq Technology
National Parks,Cost to be Re-allocated,Info & Comm Technology,Supplies & Services,Printing,6015,03/08/2015,809663,"1,062.44",Konica Minolta Business Solutions UK Ltd
National Parks,Recreation Management & Transport,Property Operations,Premises,Rent,5000,03/08/2015,809709,"2,789.73",Rydal Estate
National Parks,Cost to be Re-allocated,Personnel,Supplies & Services,Subs to Organisations,6035,03/08/2015,809657,749.24,North Western Local Authorities
National Parks,Promoting Understanding,Catering,Employee Costs,Temporary Agency Staff,4090,03/08/2015,809745,984.38,AWOL Recruitment
National Parks,Promoting Understanding,Catering,Employee Costs,Temporary Agency Staff,4090,03/08/2015,809746,418.54,Masterstaff Ltd
National Parks,Promoting Understanding,Brockhole,Premises,Water,5010,03/08/2015,809742,"1,699.52",United Utilities Water Ltd (BACS only)
National Parks,Promoting Understanding,Catering,Premises,Water,5010,03/08/2015,809742,299.91,United Utilities Water Ltd (BACS only)
National Parks,Promoting Understanding,Gardeners,Employee Costs,Contract Staff,4092,04/08/2015,809781,"1,462.50",Helping Hands Gardening Service
National Parks,Promoting Understanding,Gardeners,Employee Costs,Contract Staff,4092,04/08/2015,809804,"1,200.00",Mr J Camp
National Parks,Promoting Understanding,Bowness Bay IC,Supplies & Services,Gifts for Resale (Stock),7010,04/08/2015,809695,552.54,Coniston Gifts Ltd
National Parks,Promoting Understanding,Bowness Bay IC,Supplies & Services,Gifts for Resale (Stock),7010,04/08/2015,809704,517.44,Farrah's Ltd
National Parks,Promoting Understanding,Brockhole IC,Supplies & Services,Gifts for Resale (Stock),7010,04/08/2015,809271,521.07,The Herdy Company Ltd
National Parks,Promoting Understanding,Bowness Bay IC,Supplies & Services,Gifts for Resale (Stock),7010,04/08/2015,809702,553.81,The Little Black Bead Company Lt
National Parks,Promoting Understanding,Ullswater IC,Supplies & Services,Books for Resale,7015,05/08/2015,809767,526.6,Hills Books Ltd
National Parks,Gain / Loss on Asset Disposal,Gain / Loss on Asset Disposal,Below the Line adjustments,Disp - Costs,8451,05/08/2015,809822,"2,353.17",Michael CL Hodgson
National Parks,Employers Pension Contributions,Employers Pension Contributions,Below the Line adjustments,STMGFB Pension Contributions,8470,05/08/2015,809585,"16,814.51",Cumbria LGPS
National Parks,Cost to be Re-allocated,Contact Centre,Supplies & Services,Uniforms/Protective Cloth,5570,05/08/2015,809645,820.5,Coniston Corporate Embroidery Lt
National Parks,Cost to be Re-allocated,Development Management Support,Supplies & Services,Consultants,8205,06/08/2015,809925,875,Carter Jonas
National Parks,Cost to be Re-allocated,Murley Moss,Premises,Electricity,5100,06/08/2015,809718,905.41,Npower
National Parks,Cost to be Re-allocated,Property Maintenance Fund,Premises,Prpty Mtce Fd Unallocated,5252,06/08/2015,809777,800,Mr James Gillings
National Parks,Promoting Understanding,Brockhole,Premises,Water,5010,06/08/2015,809931,"-1,003.19",United Utilities Water Ltd. DIRECT DEBIT
National Parks,Promoting Understanding,Keswick IC,Supplies & Services,Books for Resale,7015,07/08/2015,809765,899.94,Hills Books Ltd
National Parks,Conservation of the Cultural Heritage,Heritage Conservation - Projects,Supplies & Services,Consultants,8205,07/08/2015,809686,725,Freeform Studios ltd
National Parks,Promoting Understanding,Bowness Bay IC,Supplies & Services,Gifts for Resale (Stock),7010,07/08/2015,809796,727.64,Coniston Gifts Ltd
National Parks,Promoting Understanding,Brockhole IC,Supplies & Services,Gifts for Resale (Stock),7010,07/08/2015,809563,726.74,Keycraft Ltd
National Parks,Promoting Understanding,Bowness Bay IC,Supplies & Services,Gifts for Resale (Stock),7010,07/08/2015,809797,696.15,The Pebble Shop
National Parks,Conservation of the Cultural Heritage,Heritage Conservation - Projects,Supplies & Services,Miscellaneous Expenses,6999,07/08/2015,809677,"2,401.10",Tess Mountable
National Parks,Promoting Understanding,Catering,Premises,Other Clean (Incl Refuse),5205,07/08/2015,809897,535.18,Biffa Waste Services ltd.
National Parks,Promoting Understanding,Brockhole IC,Supplies & Services,Books for Resale,7015,08/08/2015,809623,787.59,Hills Books Ltd
National Parks,Promoting Understanding,Bowness Bay IC,Supplies & Services,Gifts for Resale (Stock),7010,08/08/2015,809924,546.9,Rainbow Designs
National Parks,Promoting Understanding,Brockhole IC,Supplies & Services,Gifts for Resale (Stock),7010,08/08/2015,809920,476.8,The Herdy Company Ltd
National Parks,Cost to be Re-allocated,Strategy & Partnerships,Supplies & Services,Consultants,8205,10/08/2015,809991,867,Richard Ingham Cycle Planning Consultancy
National Parks,Promoting Understanding,Brockhole IC,Supplies & Services,Gifts for Resale (Stock),7010,10/08/2015,809684,456.1,RJB Stone Ltd
National Parks,Recreation Management & Transport,See More Project,Third Party Payments,Grant Contribution,8350,10/08/2015,809820,"3,750.00",Lake District Estates Co Ltd T/A Ullswater Steamer
National Parks,Recreation Management & Transport,See More Project,Third Party Payments,Grant Contribution,8350,10/08/2015,809664,"7,500.00",Mountain Goat Hols & Tours
National Parks,,Balance Sheet Cost Centre,,Lowther Car Parks,2115,10/08/2015,809994,"2,213.80",Dalemain Estates
National Parks,,CBC - Capital,,Plant Machinery & Equipment,CE04,10/08/2015,809788,"13,987.50",Lakes Marine
National Parks,Cost to be Re-allocated,PMF Projects ,Premises,Prpty Mtce Fd Unallocated,5252,10/08/2015,809928,653.73,Bainbridge Electrical Ltd
National Parks,Cost to be Re-allocated,PMF Projects ,Premises,Prpty Mtce Fd Unallocated,5252,10/08/2015,809927,884.94,Bainbridge Electrical Ltd
National Parks,Promoting Understanding,Keswick IC,Supplies & Services,Books for Resale,7015,11/08/2015,809625,510.24,Hills Books Ltd
National Parks,Promoting Understanding,Brockhole,Premises,Contract Cleaning,5200,11/08/2015,809778,"1,966.25",Cumbria Cleaning Services Ltd
National Parks,Promoting Understanding,Catering,Supplies & Services,Food for Resale,7000,11/08/2015,809969,50.48,English Lakes Ice Cream
National Parks,Promoting Understanding,Catering,Supplies & Services,Food for Resale,7000,11/08/2015,809967,28.76,English Lakes Ice Cream
National Parks,Promoting Understanding,Catering,Supplies & Services,Food for Resale,7000,11/08/2015,809960,552.46,Mommas Foods Limited
National Parks,Promoting Understanding,Keswick IC,Supplies & Services,Gifts for Resale (Stock),7010,11/08/2015,809630,793.15,Cardtoons Publications Ltd
National Parks,Promoting Understanding,Catering,Supplies & Services,Ice Cream for Resale,7005,11/08/2015,809969,385.99,English Lakes Ice Cream
National Parks,Promoting Understanding,Catering,Supplies & Services,Ice Cream for Resale,7005,11/08/2015,809967,422.55,English Lakes Ice Cream
National Parks,Promoting Understanding,Catering,Supplies & Services,Ice Cream for Resale,7005,11/08/2015,809970,935.03,Hulleys Group Limited (Speediserve)
National Parks,Promoting Understanding,Keswick IC,Supplies & Services,Books for Resale,7015,12/08/2015,810007,"1,030.91",Hills Books Ltd
National Parks,Forward Planning & Communities,Policy & Strategy Projects,Supplies & Services,Consultants,8205,12/08/2015,809772,"3,100.00",Uniform Communications Ltd
National Parks,Promoting Understanding,Bowness Bay IC,Premises,Contract Cleaning,5200,12/08/2015,810082,555,South Lakes Services
National Parks,Promoting Understanding,Catering,Supplies & Services,Food for Resale,7000,12/08/2015,810016,122.68,English Lakes Ice Cream
National Parks,Promoting Understanding,Catering,Supplies & Services,Food for Resale,7000,12/08/2015,810037,442.76,Halls (Kendal) Ltd
National Parks,Promoting Understanding,Catering,Supplies & Services,Food for Resale,7000,12/08/2015,810051,479.46,Halls (Kendal) Ltd
National Parks,Promoting Understanding,Catering,Supplies & Services,Food for Resale,7000,12/08/2015,810048,527.54,Halls (Kendal) Ltd
National Parks,Promoting Understanding,Catering,Supplies & Services,Food for Resale,7000,12/08/2015,810030,668.67,Halls (Kendal) Ltd
National Parks,Promoting Understanding,Catering,Supplies & Services,Food for Resale,7000,12/08/2015,810025,591.6,Mommas Foods Limited
National Parks,Promoting Understanding,Catering,Supplies & Services,Food for Resale,7000,12/08/2015,810013,563,Town End Dairy
National Parks,Promoting Understanding,Catering,Supplies & Services,Ice Cream for Resale,7005,12/08/2015,810014,544.77,English Lakes Ice Cream
National Parks,Promoting Understanding,Catering,Supplies & Services,Ice Cream for Resale,7005,12/08/2015,810016,472.54,English Lakes Ice Cream
National Parks,Cost to be Re-allocated,Info & Comm Technology,Supplies & Services,Mobile Phones,6006,12/08/2015,809903,"-1,020.00",Vodafone Corporate Ltd
National Parks,Cost to be Re-allocated,Info & Comm Technology,Supplies & Services,Mobile Phones,6006,12/08/2015,809904,-670,Vodafone Corporate Ltd
National Parks,Cost to be Re-allocated,Info & Comm Technology,Supplies & Services,Mobile Phones,6006,12/08/2015,809786,"3,784.57",Vodafone Corporate Ltd
National Parks,Promoting Understanding,PMF Projects ,Premises,Prpty Mtce Fd Unallocated,5252,12/08/2015,810084,399.57,G4S Secure Solutions (Uk) Ltd
National Parks,Cost to be Re-allocated,PMF Projects ,Premises,Prpty Mtce Fd Unallocated,5252,12/08/2015,810084,399.57,G4S Secure Solutions (Uk) Ltd
National Parks,Cost to be Re-allocated,Murley Moss,Premises,Contract Cleaning,5200,13/08/2015,810079,"1,130.50",Bullough Contract Services Ltd
National Parks,Promoting Understanding,Catering,Supplies & Services,Food for Resale,7000,13/08/2015,810108,846,Riverbank Hospitality Catering
National Parks,Promoting Understanding,Catering,Supplies & Services,Food for Resale,7000,13/08/2015,810109,902.5,Riverbank Hospitality Catering
National Parks,Promoting Understanding,Bowness Bay IC,Supplies & Services,Gifts for Resale (Stock),7010,13/08/2015,809999,695.4,Coniston Gifts Ltd
National Parks,Promoting Understanding,Bowness Bay IC,Supplies & Services,Gifts for Resale (Stock),7010,13/08/2015,809983,558.52,Firefrost Ltd
National Parks,Cost to be Re-allocated,Vehicles,Transport,Maint/Service/Repairs/MOT,5410,13/08/2015,809907,711.79,Lakeland Landrover
National Parks,Cost to be Re-allocated,Vehicles,Transport,Maint/Service/Repairs/MOT,5410,13/08/2015,810071,635.62,Pye Motors
National Parks,Cost to be Re-allocated,PMF Projects ,Premises,Prpty Mtce Fd Unallocated,5252,13/08/2015,810068,"2,935.00",Carlisle Scaffolding Ltd
National Parks,Cost to be Re-allocated,PMF Projects ,Premises,Prpty Mtce Fd Unallocated,5252,13/08/2015,810010,"46,806.46",Mr A V Clarke T/A Sam Clarke
National Parks,Promoting Understanding,Catering,Employee Costs,Temporary Agency Staff,4090,13/08/2015,810106,420,AWOL Recruitment
National Parks,Promoting Understanding,Catering,Employee Costs,Temporary Agency Staff,4090,13/08/2015,810107,"1,006.26",AWOL Recruitment
National Parks,Promoting Understanding,Catering,Employee Costs,Temporary Agency Staff,4090,13/08/2015,810110,492.4,Masterstaff Ltd
National Parks,Promoting Understanding,Brockhole IC,Supplies & Services,Books for Resale,7015,14/08/2015,810002,542.51,Hills Books Ltd
National Parks,Recreation Management & Transport,Toilets,Premises,Contract Cleaning,5200,14/08/2015,810022,"2,566.83",Stephen E Airey t/a Bob Airey
National Parks,Recreation Management & Transport,Property Operations,Supplies & Services,Credit Card Charges,6925,14/08/2015,810058,899.3,Park with Ease Ltd
National Parks,Recreation Management & Transport,Coniston Boating Centre,Supplies & Services,Equip Other Mtce/Repairs,5530,14/08/2015,810054,"1,215.00",Hadwins Sheds
National Parks,Promoting Understanding,Brockhole IC,Supplies & Services,Gifts for Resale (Stock),7010,14/08/2015,809982,744.74,Firefrost Ltd
National Parks,Promoting Understanding,Brockhole IC,Supplies & Services,Gifts for Resale (Stock),7010,14/08/2015,809936,871.25,Peaks in Profile
National Parks,Promoting Understanding,Brockhole IC,Supplies & Services,Gifts for Resale (Stock),7010,14/08/2015,809771,690.7,RJB Stone Ltd
National Parks,Recreation Management & Transport,Property Operations,Premises,Grounds Maintenance,5245,14/08/2015,810069,860,Coniston Ground Care
National Parks,Recreation Management & Transport,Property Operations,Supplies & Services,Miscellaneous Expenses,6999,14/08/2015,810064,522,Park with Ease Ltd
National Parks,Recreation Management & Transport,Property Operations,Supplies & Services,Miscellaneous Expenses,6999,14/08/2015,810062,650.25,Park with Ease Ltd
National Parks,Recreation Management & Transport,Property Operations,Supplies & Services,Miscellaneous Expenses,6999,14/08/2015,810060,717.75,Park with Ease Ltd
National Parks,Recreation Management & Transport,Toilets,Premises,Other Clean (Incl Refuse),5205,14/08/2015,810022,20,Stephen E Airey t/a Bob Airey
National Parks,Cost to be Re-allocated,Communications & Customer Engagement,Supplies & Services,Shows & Events,6306,14/08/2015,810142,"1,600.00",Adventure 21
National Parks,Cost to be Re-allocated,Communications & Customer Engagement,Supplies & Services,Customer Engagement,6308,17/08/2015,810184,"10,000.00",Arkenford Ltd
National Parks,,Balance Sheet Cost Centre,,Gondola Tickets,2108,17/08/2015,810182,"5,159.68",National Trust - Gondola
National Parks,Recreation Management & Transport,See More Project,Third Party Payments,Grant Contribution,8350,17/08/2015,810170,"-15,000.00",Mountain Goat Hols & Tours
National Parks,Recreation Management & Transport,See More Project,Third Party Payments,Grant Contribution,8350,17/08/2015,810168,"7,500.00",Mountain Goat Hols & Tours
National Parks,Recreation Management & Transport,See More Project,Third Party Payments,Grant Contribution,8350,17/08/2015,810169,"10,000.00",Mountain Goat Hols & Tours
National Parks,,Balance Sheet Cost Centre,,Grasmere School,2124,17/08/2015,810171,864.47,Grasmere C of E Primary School
National Parks,,Balance Sheet Cost Centre,,Launch Tickets,2116,17/08/2015,810174,702.86,Windermere Lake Cruises Ltd
National Parks,Promoting Understanding,Catering,Employee Costs,Temporary Agency Staff,4090,17/08/2015,810136,575.35,Adecco UK Ltd
National Parks,,Balance Sheet Cost Centre,,TIC Agency 90%,2110,17/08/2015,810178,"6,871.06",Keswick Launch Company
National Parks,,Balance Sheet Cost Centre,,TIC Agency 90%,2110,17/08/2015,810177,772.75,Mountain Goat Hols & Tours
National Parks,,Balance Sheet Cost Centre,,TIC Agency 90%,2110,17/08/2015,810176,594.9,Supertours
National Parks,Promoting Understanding,Keswick IC,Supplies & Services,Books for Resale,7015,18/08/2015,810194,"1,612.17",Hills Books Ltd
National Parks,Cost to be Re-allocated,PMF Projects ,Premises,Prpty Mtce Fd Unallocated,5252,18/08/2015,810198,450,Simpson Services
National Parks,Recreation Management & Transport,Recreation,Premises,Bridge replacements & repairs,5281,19/08/2015,810162,"2,085.00",Laversdale Timber Co Ltd
National Parks,"Rangers, Estates & Volunteers",Park Management Apprentices,Supplies & Services,Equipment - Hire,5535,19/08/2015,809812,510,Eden Lime Mortar Ltd
National Parks,Promoting Understanding,Gardeners,Premises,Grounds Maintenance,5245,19/08/2015,810091,208,B & J Metals
National Parks,Cost to be Re-allocated,Info & Comm Technology,Supplies & Services,Mobile Phones,6006,19/08/2015,810118,640.5,Vodafone Ltd DIRECT DEBIT
National Parks,Cost to be Re-allocated,Info & Comm Technology,Supplies & Services,Mobile Phones,6006,19/08/2015,810209,928.83,Vodafone Ltd DIRECT DEBIT
National Parks,Cost to be Re-allocated,Info & Comm Technology,Supplies & Services,Phones,6005,19/08/2015,810098,711.43,Daisy Communications
National Parks,Cost to be Re-allocated,Info & Comm Technology,Supplies & Services,Printing,6015,19/08/2015,810111,684.95,Konica Minolta Business Solutions UK Ltd
National Parks,Cost to be Re-allocated,PMF Projects ,Premises,Prpty Mtce Fd Unallocated,5252,19/08/2015,810091,480,B & J Metals
National Parks,Recreation Management & Transport,Coniston Boating Centre,Supplies & Services,Credit Card Charges,6925,20/08/2015,810119,889.38,Credit Call Communications Ltd DD
National Parks,Recreation Management & Transport,Coniston Boating Centre,Supplies & Services,Credit Card Charges,6925,20/08/2015,810120,459.68,Data Interchange Plc DIRECT DEBIT
National Parks,Recreation Management & Transport,Coniston Boating Centre,Supplies & Services,Credit Card Charges,6925,20/08/2015,810127,"1,760.23",First Data DD
National Parks,Promoting Understanding,Catering,Supplies & Services,Food for Resale,7000,20/08/2015,810362,50.48,English Lakes Ice Cream
National Parks,Promoting Understanding,Catering,Supplies & Services,Food for Resale,7000,20/08/2015,810364,781.76,Hulleys Group Limited (Speediserve)
National Parks,Promoting Understanding,Catering,Supplies & Services,Food for Resale,7000,20/08/2015,810213,"1,523.99",Riverbank Hospitality Catering
National Parks,Promoting Understanding,Catering,Supplies & Services,Ice Cream for Resale,7005,20/08/2015,810362,517.11,English Lakes Ice Cream
National Parks,Forward Planning & Communities,Partnership Priorities,Supplies & Services,Miscellaneous Expenses,6999,20/08/2015,809948,"2,500.00",Cumbria Tourism
National Parks,Cost to be Re-allocated,Property Manager,Supplies & Services,Other Professional Fees,8215,20/08/2015,810339,"1,454.40",Carter Jonas
National Parks,Forward Planning & Communities,Spatial Planning & Community Projects,Supplies & Services,Other Professional Fees,8215,20/08/2015,810205,750,Julian Jackson Professional Services
National Parks,Cost to be Re-allocated,Property Manager,Supplies & Services,Other Professional Fees,8215,20/08/2015,810350,606,Milne Moser Solicitors
National Parks,Forward Planning & Communities,Spatial Planning & Community Projects,Supplies & Services,Other Professional Fees,8215,20/08/2015,810078,"3,750.00",Rosemary Kidd
National Parks,Cost to be Re-allocated,PMF Projects ,Premises,Prpty Mtce Fd Unallocated,5252,20/08/2015,810226,840,Enviroguard Northwest Limited
National Parks,Recreation Management & Transport,Coniston Boating Centre,Premises,Rent,5000,20/08/2015,810292,"20,868.73",Michael CL Hodgson
National Parks,Recreation Management & Transport,Property Operations,Supplies & Services,Security Service Cash Col,6985,20/08/2015,810164,"1,282.40",Loomis UK Limited
National Parks,Promoting Understanding,Catering,Employee Costs,Temporary Agency Staff,4090,20/08/2015,810211,"1,255.63",AWOL Recruitment
National Parks,,HR balance sheet CC,,Busy Bees,2506,21/08/2015,810123,"2,753.00",Computershare Voucher Services DD
National Parks,Recreation Management & Transport,Toilets,Premises,Contract Cleaning,5200,21/08/2015,810217,630,Lakesloos
National Parks,Recreation Management & Transport,Toilets,Premises,Contract Cleaning,5200,21/08/2015,810369,889.5,Roger Turner Cleaning
National Parks,Recreation Management & Transport,Property Operations,Supplies & Services,Equipment - Contract Mtce,5525,21/08/2015,810360,"1,963.00",Metric Group Ltd
National Parks,Cost to be Re-allocated,Personnel,Employee Costs,Occupational Health,4220,21/08/2015,810222,"1,005.70",CueDoc Holdings Ltd
National Parks,Recreation Management & Transport,Rusland Horizons,Supplies & Services,Other Professional Fees,8215,21/08/2015,810088,"2,000.00",Wingspan Consulting Ltd
National Parks,"Rangers, Estates & Volunteers",Volunteers,Supplies & Services,Printing,6015,21/08/2015,810225,500,Oscar Jones
National Parks,Cost to be Re-allocated,Personnel,Employee Costs,Temporary Agency Staff,4090,21/08/2015,809802,442.21,Reed Employment plc
National Parks,Cost to be Re-allocated,Personnel,Employee Costs,Training,4200,21/08/2015,810157,"2,990.00",Ice Creates Ltd
National Parks,Forward Planning & Communities,Policy & Strategy Projects,Supplies & Services,Consultants,8205,24/08/2015,810148,"2,275.00",Adrian Phillips
National Parks,Gain / Loss on Asset Disposal,Gain / Loss on Asset Disposal,Below the Line adjustments,Disp - Costs,8451,24/08/2015,810094,"2,552.77",Smiths Gore
National Parks,Cost to be Re-allocated,Equipment,Supplies & Services,Equipment - Purchase,5520,24/08/2015,809906,"2,280.00",David Johnson
National Parks,Promoting Understanding,Catering,Supplies & Services,Food for Resale,7000,24/08/2015,810383,"1,448.74",Riverbank Hospitality Catering
National Parks,Promoting Understanding,Brockhole IC,Supplies & Services,Gifts for Resale (Stock),7010,24/08/2015,810312,587.08,Black Ginger Ltd
National Parks,Promoting Understanding,Bowness Bay IC,Supplies & Services,Gifts for Resale (Stock),7010,24/08/2015,810320,505.89,Coniston Gifts Ltd
National Parks,Promoting Understanding,Brockhole IC,Supplies & Services,Gifts for Resale (Stock),7010,24/08/2015,810319,464.16,Coniston Gifts Ltd
National Parks,Promoting Understanding,Ullswater IC,Supplies & Services,Gifts for Resale (Stock),7010,24/08/2015,810386,798.06,Star Editions Ltd
National Parks,Promoting Understanding,Brockhole IC,Supplies & Services,Gifts for Resale (Stock),7010,24/08/2015,810143,603.33,Viewpoints Gallery
National Parks,Recreation Management & Transport,Fix the Fells,Premises,Grounds Maintenance,5245,24/08/2015,810112,"2,095.00",Rigby Taylor Ltd
National Parks,Cost to be Re-allocated,Legal,Supplies & Services,Legal Fees/Counsel Fees,8200,24/08/2015,810393,"2,180.00",Ms Stephanie Hall
National Parks,Promoting Understanding,Brockhole,Supplies & Services,Marketing,6310,24/08/2015,810412,819,Cumbria Tourism
National Parks,Conservation of the Cultural Heritage,Heritage Conservation - Projects,Supplies & Services,Miscellaneous Expenses,6999,24/08/2015,810333,"11,565.00",York Archaeological Trust - ArcHeritage
National Parks,Cost to be Re-allocated,Finance Team,Supplies & Services,Other Professional Fees,8215,24/08/2015,810074,975,TIAA Ltd
National Parks,Cost to be Re-allocated,Finance Team,Supplies & Services,Other Professional Fees,8215,24/08/2015,810075,"3,900.00",TIAA Ltd
National Parks,Cost to be Re-allocated,Vehicles,Transport,Petrol/Fuel,5400,24/08/2015,810357,"1,979.00",Compass Fuel Oils Ltd
National Parks,Cost to be Re-allocated,Vehicles,Transport,Petrol/Fuel,5400,24/08/2015,810300,551.26,Furness & Sth Cumberland Supply
National Parks,Cost to be Re-allocated,Vehicles,Transport,Petrol/Fuel,5400,24/08/2015,810314,484.39,Market Street Filling Station
National Parks,,Balance Sheet Cost Centre,,Procurement Card Control,2400,24/08/2015,810117,"19,272.36",Natwest
National Parks,Cost to be Re-allocated,Communications & Customer Engagement,Supplies & Services,Professional Fees - Education,8217,24/08/2015,810303,"9,317.50",John Muir Trust
National Parks,Cost to be Re-allocated,PMF Projects ,Premises,Prpty Mtce Fd Unallocated,5252,24/08/2015,810325,670.57,Roland Shuttleworth
National Parks,Promoting Understanding,Catering,Employee Costs,Temporary Agency Staff,4090,24/08/2015,810401,896.88,AWOL Recruitment
National Parks,Cost to be Re-allocated,Communications & Customer Engagement,Supplies & Services,Customer Engagement,6308,25/08/2015,810433,819,Cumbria Tourism
National Parks,Promoting Understanding,Gardeners,Supplies & Services,Equipment - Purchase,5520,25/08/2015,810453,"1,867.50",Ambleside Forest & Garden
National Parks,Promoting Understanding,Brockhole,Premises,Electricity,5100,26/08/2015,810450,"1,740.28",Npower
National Parks,Promoting Understanding,Catering,Premises,Electricity,5100,26/08/2015,810450,307.11,Npower
National Parks,Cost to be Re-allocated,Murley Moss,Premises,Electricity,5100,26/08/2015,810445,947.51,Npower
National Parks,Recreation Management & Transport,Toilets,Premises,Contract Cleaning,5200,28/08/2015,810486,"2,566.83",Stephen E Airey t/a Bob Airey
National Parks,Promoting Understanding,Catering,Supplies & Services,Food for Resale,7000,28/08/2015,810509,"1,056.49",Riverbank Hospitality Catering
National Parks,Promoting Understanding,Brockhole IC,Supplies & Services,Gifts for Resale (Stock),7010,28/08/2015,810432,672.5,Ty UK Ltd
National Parks,Recreation Management & Transport,Toilets,Premises,Other Clean (Incl Refuse),5205,28/08/2015,810486,15,Stephen E Airey t/a Bob Airey
National Parks,Cost to be Re-allocated,Info & Comm Technology,Supplies & Services,Phones,6005,28/08/2015,810421,"20,321.18",Lancashire County Council
National Parks,Promoting Understanding,Catering,Employee Costs,Temporary Agency Staff,4090,28/08/2015,810501,"1,120.00",AWOL Recruitment
National Parks,Recreation Management & Transport,Toilets,Premises,Water,5010,28/08/2015,810439,"1,119.91",United Utilities Water Ltd. DIRECT DEBIT
National Parks,Recreation Management & Transport,Recreation,Premises,Basic RoW Maintenance,5240,01/09/2015,810518,540,Ravenglass & Eskdale Railway
National Parks,,HR balance sheet CC,,Busy Bees,2506,01/09/2015,810392,"2,672.00",Computershare Voucher Services DD
National Parks,Cost to be Re-allocated,Communications & Customer Engagement,Supplies & Services,Customer Engagement,6308,01/09/2015,810462,940,Uniform Communications Ltd
National Parks,"Rangers, Estates & Volunteers",Park Management Apprentices,Supplies & Services,Fell Futures Volunteers,5572,01/09/2015,810385,800,Craven College
National Parks,Promoting Understanding,Bowness Bay IC,Supplies & Services,Gifts for Resale (Stock),7010,01/09/2015,810469,565.84,Coniston Gifts Ltd
National Parks,Forward Planning & Communities,Community - Fund,Third Party Payments,Grant Contribution,8350,01/09/2015,810519,"1,200.00",Redacted Personal Data
National Parks,,Cultural heritage Properties - Cap,,New Construction Conversion Renovation,CE02,01/09/2015,810515,"4,850.00",Geol Consultants
National Parks,Cost to be Re-allocated,Finance Team,Supplies & Services,Other Professional Fees,8215,01/09/2015,810516,"6,380.00",Lancaster City Council
National Parks,Cost to be Re-allocated,Personnel,Employee Costs,Promotion & Development,4223,01/09/2015,810429,"2,603.05",Ice Creates Ltd
National Parks,Cost to be Re-allocated,Personnel,Employee Costs,Promotion & Development,4223,01/09/2015,810435,"4,250.00",Ice Creates Ltd
National Parks,Cost to be Re-allocated,Property Maintenance Fund,Premises,Prpty Mtce Fd Unallocated,5252,01/09/2015,810522,-771.92,The Utility Warehouse
National Parks,Cost to be Re-allocated,Property Maintenance Fund,Premises,Prpty Mtce Fd Unallocated,5252,01/09/2015,810521,616.3,The Utility Warehouse
National Parks,Cost to be Re-allocated,Property Maintenance Fund,Premises,Prpty Mtce Fd Unallocated,5252,01/09/2015,810520,692.57,The Utility Warehouse
National Parks,Cost to be Re-allocated,Personnel,Employee Costs,Training,4200,01/09/2015,810385,400,Craven College
National Parks,Promoting Understanding,Gardeners,Employee Costs,Contract Staff,4092,03/09/2015,810686,"1,012.50",Helping Hands Gardening Service
National Parks,Promoting Understanding,Gardeners,Employee Costs,Contract Staff,4092,03/09/2015,810666,960,Mr J Camp
National Parks,Cost to be Re-allocated,PMF Projects ,Premises,Prpty Mtce Fd Unallocated,5252,03/09/2015,810484,"1,100.00",Stephen E Airey t/a Bob Airey
National Parks,Promoting Understanding,Brockhole IC,Supplies & Services,Books for Resale,7015,04/09/2015,810479,839.61,Hills Books Ltd
National Parks,Promoting Understanding,Catering,Supplies & Services,Cafe consumables,7006,04/09/2015,810634,176.37,English Lakes Ice Cream
National Parks,Promoting Understanding,Catering,Supplies & Services,Food for Resale,7000,04/09/2015,810631,50.48,English Lakes Ice Cream
National Parks,Promoting Understanding,Catering,Supplies & Services,Food for Resale,7000,04/09/2015,810618,693,Mommas Foods Limited
National Parks,Promoting Understanding,Catering,Supplies & Services,Food for Resale,7000,04/09/2015,810690,"1,194.49",Riverbank Hospitality Catering
National Parks,Promoting Understanding,Brockhole IC,Supplies & Services,Gifts for Resale (Stock),7010,04/09/2015,810482,453.67,Cardtoons Publications Ltd
National Parks,Promoting Understanding,Bowness Bay IC,Supplies & Services,Gifts for Resale (Stock),7010,04/09/2015,810530,671.94,Coniston Gifts Ltd
National Parks,Promoting Understanding,Bowness Bay IC,Supplies & Services,Gifts for Resale (Stock),7010,04/09/2015,810524,460,Perfect Pictures
National Parks,Promoting Understanding,Catering,Supplies & Services,Ice Cream for Resale,7005,04/09/2015,810631,573.12,English Lakes Ice Cream
National Parks,Promoting Understanding,Catering,Supplies & Services,Ice Cream for Resale,7005,04/09/2015,810634,582.18,English Lakes Ice Cream
National Parks,Cost to be Re-allocated,Legal,Supplies & Services,Legal Fees/Counsel Fees,8200,04/09/2015,810705,485,Ms Stephanie Hall
National Parks,Promoting Understanding,Catering,Premises,Other Clean (Incl Refuse),5205,04/09/2015,810657,579.32,Biffa Waste Services ltd.
National Parks,Recreation Management & Transport,Rusland Horizons,Supplies & Services,Other Professional Fees,8215,04/09/2015,809738,"1,995.00",Butterfly Conservation
National Parks,Promoting Understanding,Catering,Supplies & Services,Cafe consumables,7006,05/09/2015,810694,177.5,Caterite
National Parks,Promoting Understanding,Catering,Supplies & Services,Food for Resale,7000,05/09/2015,810694,"3,169.48",Caterite
National Parks,Recreation Management & Transport,Recreation,Premises,Basic RoW Maintenance,5240,07/09/2015,810345,"23,815.00",Crowe Plant Hire Limited
National Parks,Promoting Understanding,Keswick IC,Supplies & Services,Books for Resale,7015,07/09/2015,810473,592.74,Hills Books Ltd
National Parks,Promoting Understanding,Keswick IC,Supplies & Services,Books for Resale,7015,07/09/2015,810645,844.2,Royal Mail Retail DIRECT DEBIT
National Parks,,Broughton Depot - balance sheet CC,,Broughton Depot Stock,1912,07/09/2015,810144,456,Fox Fencing Ltd
National Parks,Cost to be Re-allocated,Strategy & Partnerships,Supplies & Services,Consultants,8205,07/09/2015,810340,550,Chris Greenwood Landscape Architect
National Parks,Forward Planning & Communities,Policy & Strategy Projects,Supplies & Services,Consultants,8205,07/09/2015,810390,750,Katy Abbott
National Parks,Cost to be Re-allocated,Murley Moss,Premises,Contract Cleaning,5200,07/09/2015,810688,"1,130.50",Bullough Contract Services Ltd
National Parks,Promoting Understanding,Brockhole IC,Supplies & Services,Gifts for Resale (Stock),7010,07/09/2015,810490,521.16,Keycraft Ltd
National Parks,Forward Planning & Communities,Community - Fund,Third Party Payments,Grant Contribution,8350,07/09/2015,810733,"3,000.00",Eskdale Mill & Heritage Trust
National Parks,Forward Planning & Communities,Community - Fund,Third Party Payments,Grant Contribution,8350,07/09/2015,810738,623.4,Redacted Personal Data
National Parks,Conservation of the Natural Environment,Environment,Premises,Grounds Maintenance,5245,07/09/2015,810748,"5,050.00",Ian Cannon Ltd Groundwork Services
National Parks,Conservation of the Natural Environment,Environment,Premises,Grounds Maintenance,5245,07/09/2015,810643,455,Messers Birkett
National Parks,Recreation Management & Transport,Recreation,Premises,Signs New,5280,07/09/2015,810352,736,Brampton Wood Works
National Parks,Recreation Management & Transport,Recreation,Premises,Signs New,5280,07/09/2015,810356,"1,392.80",Brampton Wood Works
National Parks,Employers Pension Contributions,Employers Pension Contributions,Below the Line adjustments,STMGFB Pension Contributions,8470,07/09/2015,810669,"4,223.54",Cumbria LGPS
National Parks,Employers Pension Contributions,Employers Pension Contributions,Below the Line adjustments,STMGFB Pension Contributions,8470,07/09/2015,810670,"4,953.18",Cumbria LGPS
National Parks,Cost to be Re-allocated,Murley Moss,Premises,Water,5010,07/09/2015,810655,"2,372.89",United Utilities Water Ltd. DIRECT DEBIT
National Parks,Promoting Understanding,Bowness Bay IC,Premises,Contract Cleaning,5200,08/09/2015,810708,600,South Lakes Services
National Parks,Promoting Understanding,Bowness Bay IC,Supplies & Services,Gifts for Resale (Stock),7010,08/09/2015,810721,735.37,Farrah's Ltd
National Parks,Cost to be Re-allocated,Property Maintenance Fund,Premises,Prpty Mtce Fd Unallocated,5252,08/09/2015,810740,800,Mr James Gillings
National Parks,Recreation Management & Transport,Toilets,Premises,Contract Cleaning,5200,10/09/2015,810839,889.5,Roger Turner Cleaning
National Parks,Recreation Management & Transport,Property Operations,Supplies & Services,Equipment - Contract Mtce,5525,10/09/2015,810793,928,Data Interchange - Annual Licence (BACS)
National Parks,Recreation Management & Transport,Property Operations,Supplies & Services,Equipment - Contract Mtce,5525,10/09/2015,810724,488.26,Data Interchange Plc DIRECT DEBIT
National Parks,Recreation Management & Transport,Property Operations,Supplies & Services,Equipment - Contract Mtce,5525,10/09/2015,810720,"1,564.86",Metric Group Ltd
National Parks,Cost to be Re-allocated,Legal,Supplies & Services,Legal Fees/Counsel Fees,8200,10/09/2015,810913,"1,486.00",Baines Wilson
National Parks,Cost to be Re-allocated,Member Services,Transport,Members Travel Expenses,5470,10/09/2015,810434,236,UK Association of National Park Authorities
National Parks,Corporate & Democratic Core,Corporate Costs,Transport,Other Travel Expenses,5455,10/09/2015,810434,236,UK Association of National Park Authorities
National Parks,Recreation Management & Transport,Coniston Boating Centre,Premises,Rent,5000,10/09/2015,810862,"1,240.73",Michael CL Hodgson
National Parks,Recreation Management & Transport,Property Operations,Supplies & Services,Stationery/Office Mat.,6010,10/09/2015,810746,980,Nagels UK Ltd
National Parks,,IT Capital,,Computer Hardware,CE08,11/09/2015,810640,595,ACR IT Solutions Ltd
National Parks,,IT Capital,,Computer Hardware,CE08,11/09/2015,810348,"14,685.00",ACR IT Solutions Ltd
National Parks,Cost to be Re-allocated,Info & Comm Technology,Supplies & Services,Equipment - Contract Mtce,5525,11/09/2015,810830,"2,667.61",Caretower Solutions
National Parks,Recreation Management & Transport,Rusland Horizons,Supplies & Services,Other Professional Fees,8215,11/09/2015,810829,560,Rebecca Oaks
National Parks,Cost to be Re-allocated,Info & Comm Technology,Supplies & Services,Phones,6005,11/09/2015,810725,560.73,Daisy Communications
National Parks,Cost to be Re-allocated,Info & Comm Technology,Supplies & Services,Phones,6005,11/09/2015,810727,"1,032.81",Vodafone Ltd DIRECT DEBIT
National Parks,Promoting Understanding,Catering,Employee Costs,Temporary Agency Staff,4090,11/09/2015,810691,"1,264.38",AWOL Recruitment
National Parks,,Threlkeld Depot - balance sheet CC,,Threlkeld Depot stock,1911,11/09/2015,810798,"1,298.80",Birkdale
National Parks,Cost to be Re-allocated,Personnel,Employee Costs,Agency Staff,4095,14/09/2015,810848,524.65,Reed Employment plc
National Parks,Cost to be Re-allocated,Personnel,Employee Costs,Agency Staff,4095,14/09/2015,810847,539.64,Reed Employment plc
National Parks,,Ambleside Depot - balance sheet CC,,Ambleside Depot Stock,1910,14/09/2015,810841,976,T W Relph
National Parks,Promoting Understanding,Catering,Supplies & Services,Beverages for resale,7001,14/09/2015,810955,"3,737.65",Caterite
National Parks,Promoting Understanding,Brockhole IC,Supplies & Services,Beverages for resale,7001,14/09/2015,810782,387.38,Halls (Kendal) Ltd
National Parks,Promoting Understanding,Brockhole IC,Supplies & Services,Beverages for resale,7001,14/09/2015,810773,635.84,Halls (Kendal) Ltd
National Parks,Promoting Understanding,Brockhole IC,Supplies & Services,Beverages for resale,7001,14/09/2015,810772,741.44,Halls (Kendal) Ltd
National Parks,Promoting Understanding,Brockhole IC,Supplies & Services,Beverages for resale,7001,14/09/2015,810766,898.24,Halls (Kendal) Ltd
National Parks,Promoting Understanding,Catering,Supplies & Services,Cafe consumables,7006,14/09/2015,810955,"1,071.92",Caterite
National Parks,Forward Planning & Communities,Policy & Strategy Projects,Supplies & Services,Consultants,8205,14/09/2015,810647,"3,500.00",Knightfield Holdings Ltd (The Fourth Dimension)
National Parks,Forward Planning & Communities,Policy & Strategy Projects,Supplies & Services,Consultants,8205,14/09/2015,810646,"11,100.00",Knightfield Holdings Ltd (The Fourth Dimension)
National Parks,Cost to be Re-allocated,Personnel,Supplies & Services,Consultants,8205,14/09/2015,810717,752.95,M Taylor Associates Limited
National Parks,Promoting Understanding,Catering,Premises,Contract Cleaning,5200,14/09/2015,810955,"1,034.03",Caterite
National Parks,Promoting Understanding,Brockhole,Premises,Contract Cleaning,5200,14/09/2015,810850,"3,090.00",Cumbria Cleaning Services Ltd
National Parks,Cost to be Re-allocated,Personnel,Supplies & Services,Equip Software & Service,5545,14/09/2015,810846,558.78,Advanced Business Solutions
National Parks,Promoting Understanding,Catering,Supplies & Services,Food for Resale,7000,14/09/2015,810955,"9,752.63",Caterite
National Parks,Promoting Understanding,Brockhole IC,Supplies & Services,Food for Resale,7000,14/09/2015,810782,123.34,Halls (Kendal) Ltd
National Parks,Promoting Understanding,Brockhole IC,Supplies & Services,Food for Resale,7000,14/09/2015,810773,122.08,Halls (Kendal) Ltd
National Parks,Promoting Understanding,Brockhole IC,Supplies & Services,Food for Resale,7000,14/09/2015,810772,35.96,Halls (Kendal) Ltd
National Parks,Promoting Understanding,Brockhole IC,Supplies & Services,Food for Resale,7000,14/09/2015,810766,71.92,Halls (Kendal) Ltd
National Parks,Promoting Understanding,Brockhole IC,Supplies & Services,Food for Resale,7000,14/09/2015,810836,924.39,Riverbank Hospitality Catering
National Parks,Promoting Understanding,Bowness Bay IC,Supplies & Services,Gifts for Resale (Stock),7010,14/09/2015,810950,787.58,Coniston Gifts Ltd
National Parks,Promoting Understanding,Brockhole IC,Supplies & Services,Gifts for Resale (Stock),7010,14/09/2015,810857,562.68,Coniston Gifts Ltd
National Parks,Promoting Understanding,Brockhole IC,Supplies & Services,Gifts for Resale (Stock),7010,14/09/2015,810838,425.12,The Herdy Company Ltd
National Parks,Forward Planning & Communities,Community - Fund,Third Party Payments,Grant Contribution,8350,14/09/2015,810958,"5,000.00",Witherslack Parish Hall
National Parks,Conservation of the Natural Environment,Catchment Projects,Transport,Maint/Service/Repairs/MOT,5410,14/09/2015,810957,990,E Clark & Son Ltd
National Parks,Promoting Understanding,Catering,Supplies & Services,PPE,5571,14/09/2015,810955,1.57,Caterite
National Parks,Cost to be Re-allocated,Property Maintenance Fund,Premises,Prpty Mtce Fd Unallocated,5252,14/09/2015,810959,"2,550.00",R Tweddle
National Parks,Promoting Understanding,Catering,Employee Costs,Temporary Agency Staff,4090,14/09/2015,810842,"1,102.50",AWOL Recruitment
National Parks,Cost to be Re-allocated,Personnel,Employee Costs,Training,4200,14/09/2015,810936,"1,200.00",Craven College
National Parks,Recreation Management & Transport,Property Operations,Supplies & Services,Credit Card Charges,6925,15/09/2015,810800,529.85,Capita Business Services Ltd DD
National Parks,Recreation Management & Transport,Property Operations,Supplies & Services,Credit Card Charges,6925,15/09/2015,810726,"1,294.38",Credit Call Communications Ltd DD
National Parks,Promoting Understanding,Ullswater IC,Supplies & Services,Gifts for Resale (Stock),7010,15/09/2015,810472,532.12,Black Ginger Ltd
National Parks,"Rangers, Estates & Volunteers",Park Management Apprentices,Transport,Other Travel Expenses,5455,15/09/2015,810809,639.05,Lakeland Landrover
National Parks,,Threlkeld Depot - balance sheet CC,,Threlkeld Depot stock,1911,15/09/2015,810917,718,Mr David Benson
National Parks,Recreation Management & Transport,Recreation,Premises,Basic RoW Maintenance,5240,16/09/2015,810973,-709.94,Burlington Aggregates Ltd
National Parks,Recreation Management & Transport,Recreation,Premises,Basic RoW Maintenance,5240,16/09/2015,810972,969.64,Burlington Aggregates Ltd
National Parks,Recreation Management & Transport,Recreation,Premises,Basic RoW Maintenance,5240,16/09/2015,810745,77,Mr David Benson
National Parks,Cost to be Re-allocated,Vehicles,Transport,Petrol/Fuel,5400,16/09/2015,810805,"1,111.16",Allstar Business Solutions Ltd DD
National Parks,Recreation Management & Transport,Recreation,Premises,Signs New,5280,16/09/2015,810975,764.8,Brampton Wood Works
National Parks,Recreation Management & Transport,Recreation,,Threlkeld Depot stock,1911,16/09/2015,810745,560,Mr David Benson
National Parks,Recreation Management & Transport,Property Operations,Supplies & Services,Credit Card Charges,6925,17/09/2015,810925,"2,708.06",First Data DD
National Parks,Promoting Understanding,Brockhole IC,Supplies & Services,Gifts for Resale (Stock),7010,17/09/2015,811023,-595.66,Keycraft Ltd
National Parks,Recreation Management & Transport,Property Operations,Premises,Grounds Maintenance,5245,17/09/2015,810932,730,Coniston Ground Care
National Parks,,CBC - Capital,,Plant Machinery & Equipment,CE04,17/09/2015,810961,"1,160.00",CTC Marine & Leisure
National Parks,Recreation Management & Transport,Property Operations,Supplies & Services,Security Service Cash Col,6985,17/09/2015,810924,"1,659.59",Loomis UK Limited
National Parks,Cost to be Re-allocated,Legal,Supplies & Services,Legal Fees/Counsel Fees,8200,18/09/2015,811032,"2,000.00",Ms Stephanie Hall
National Parks,Cost to be Re-allocated,Property Maintenance Fund,Premises,Prpty Mtce Fd Unallocated,5252,18/09/2015,810449,946.13,Npower
National Parks,Promoting Understanding,Keswick IC,Supplies & Services,Books for Resale,7015,20/09/2015,810540,620.9,Hills Books Ltd
National Parks,Promoting Understanding,Keswick IC,Supplies & Services,Books for Resale,7015,20/09/2015,810966,"1,291.09",Hills Books Ltd
National Parks,Promoting Understanding,Ullswater IC,Supplies & Services,Gifts for Resale (Stock),7010,21/09/2015,811043,498.8,Hamilton and Young
National Parks,,Balance Sheet Cost Centre,,Gondola Tickets,2108,21/09/2015,811061,"5,834.40",National Trust - Gondola
National Parks,Recreation Management & Transport,See More Project,Third Party Payments,Grant Contribution,8350,21/09/2015,811059,"7,300.00",Open Book Visitor Guiding
National Parks,,Balance Sheet Cost Centre,,Lowther Car Parks,2115,21/09/2015,811070,"2,385.20",Dalemain Estates
National Parks,Cost to be Re-allocated,Murley Moss,Premises,Other Fuel,5110,21/09/2015,811022,"1,092.00",W Barden Biomass
National Parks,Recreation Management & Transport,Rusland Horizons,Supplies & Services,Other Professional Fees,8215,21/09/2015,811052,"1,200.00",Deer Initiative Ltd
National Parks,Cost to be Re-allocated,PMF Projects ,Premises,Prpty Mtce Fd Unallocated,5252,21/09/2015,811040,"2,750.00",B J Murray Building Contractor
National Parks,Cost to be Re-allocated,PMF Projects ,Premises,Prpty Mtce Fd Unallocated,5252,21/09/2015,811019,450,Simpson Services
National Parks,,Balance Sheet Cost Centre,,TIC Agency 90%,2110,21/09/2015,811064,"6,664.73",Keswick Launch Company
National Parks,Cost to be Re-allocated,Personnel,Employee Costs,Training,4200,22/09/2015,811042,"1,250.00",Mountain Sense Ltd
National Parks,Cost to be Re-allocated,Personnel,Employee Costs,Agency Staff,4095,23/09/2015,811091,442.21,Reed Employment plc
National Parks,Cost to be Re-allocated,Personnel,Employee Costs,Agency Staff,4095,23/09/2015,811092,554.63,Reed Employment plc
National Parks,,HR balance sheet CC,,Busy Bees,2506,23/09/2015,811090,"2,497.50",Computershare Voucher Services DD
National Parks,Promoting Understanding,Brockhole,Premises,Electricity,5100,23/09/2015,811086,430.66,Npower
National Parks,Promoting Understanding,Brockhole,Premises,Electricity,5100,23/09/2015,811103,606.07,Npower
National Parks,Promoting Understanding,Brockhole,Premises,Electricity,5100,23/09/2015,811112,"2,225.36",Npower
National Parks,Conservation of the Natural Environment,Environment,Premises,Grounds Maintenance,5245,23/09/2015,810804,-584.9,Eden Farm Chemicals
National Parks,Cost to be Re-allocated,Vehicles,Transport,Petrol/Fuel,5400,23/09/2015,811015,"1,445.00",Allstar Business Solutions Ltd DD
National Parks,Cost to be Re-allocated,Personnel,Employee Costs,Training,4200,23/09/2015,811116,755,Myerscough College
National Parks,Cost to be Re-allocated,Strategy & Partnerships,Supplies & Services,Consultants,8205,24/09/2015,810979,"1,925.00",Chris Greenwood Landscape Architect
National Parks,Corporate & Democratic Core,Corporate Costs,Supplies & Services,District Audit,8230,24/09/2015,810922,"3,764.50",Grant Thornton UK LLP
National Parks,Promoting Understanding,Bowness Bay IC,Premises,Electricity,5100,25/09/2015,811107,"1,268.93",Npower
National Parks,Promoting Understanding,Keswick IC,Premises,Electricity,5100,25/09/2015,811104,527.26,Npower
National Parks,Cost to be Re-allocated,Murley Moss,Premises,Electricity,5100,25/09/2015,811105,896.01,Npower
National Parks,Promoting Understanding,Catering,Supplies & Services,Beverages for resale,7001,28/09/2015,811133,488.62,Grapevine The Wineservice Co
National Parks,Promoting Understanding,Catering,Supplies & Services,Beverages for resale,7001,28/09/2015,811132,865.2,Town End Dairy
National Parks,Promoting Understanding,Brockhole commercial activities DC,Supplies & Services,Boat Maintenance,5505,28/09/2015,811186,"1,769.00",Windermere Lake Cruises Ltd
National Parks,Recreation Management & Transport,Toilets,Premises,Contract Cleaning,5200,28/09/2015,811174,525,Lakesloos
National Parks,Recreation Management & Transport,Toilets,Premises,Contract Cleaning,5200,28/09/2015,811157,"2,566.83",Stephen E Airey t/a Bob Airey
National Parks,Recreation Management & Transport,Coniston Boating Centre,Premises,Electricity,5100,28/09/2015,811102,618.57,Npower
National Parks,Recreation Management & Transport,Coniston Boating Centre,Premises,Electricity,5100,28/09/2015,811110,900.1,Npower
National Parks,Cost to be Re-allocated,North & East PM,Premises,Electricity,5100,28/09/2015,811083,510.04,Npower
National Parks,Recreation Management & Transport,Toilets,Premises,Electricity,5100,28/09/2015,811152,"1,068.02",United Utilities Water Ltd. DIRECT DEBIT
National Parks,Recreation Management & Transport,Coniston Boating Centre,Supplies & Services,Equip Other Mtce/Repairs,5530,28/09/2015,811190,985,Hadwins Sheds
National Parks,Promoting Understanding,Catering,Supplies & Services,Food for Resale,7000,28/09/2015,811129,562.75,Riverbank Hospitality Catering
National Parks,Conservation of the Natural Environment,Environment,Premises,Grounds Maintenance,5245,28/09/2015,811230,"5,230.00",Graham Langcake
National Parks,Recreation Management & Transport,Toilets,Premises,Other Clean (Incl Refuse),5205,28/09/2015,811157,20,Stephen E Airey t/a Bob Airey
National Parks,,Balance Sheet Cost Centre,,Procurement Card Control,2400,28/09/2015,811153,"16,839.50",Natwest
National Parks,,Threlkeld Depot - balance sheet CC,,Threlkeld Depot stock,1911,28/09/2015,811098,"2,410.75",Woodworks
National Parks,Development Control,Planning Income,Supplies & Services,Consultants,8205,30/09/2015,811175,"4,025.00",Bowfell Consulting Limited
National Parks,Promoting Understanding,Brockhole IC,Supplies & Services,Gifts for Resale (Stock),7010,30/09/2015,811115,698.62,Richard Lang & Son Ltd
National Parks,Cost to be Re-allocated,Vehicles,Transport,Petrol/Fuel,5400,30/09/2015,811321,"1,176.86",Allstar Business Solutions Ltd DD
National Parks,Cost to be Re-allocated,Vehicles,Transport,Petrol/Fuel,5400,30/09/2015,811320,"1,468.16",Allstar Business Solutions Ltd DD
National Parks,Cost to be Re-allocated,Vehicles,Transport,Petrol/Fuel,5400,30/09/2015,811188,"1,568.00",Compass Fuel Oils Ltd
